bitfinex/quotes_SOLUSD_20250814
["timestamp","ask_amount","ask_price","bid_price","bid_amount"]
[1755187507006,50.67049147,194.26,194.16,5.76032261]
[1755187507322,11.81049147,194.21,194.13,0.61]
[1755187507534,11.81049147,194.15,194.06,5.15304544]
[1755187507694,26.0,194.09,194.0,5.15463917]
[1755187507899,15.10621557,194.2,193.96,5.1557022]
[1755187507900,26.0,194.04,193.96,5.1557022]
[1755187508194,37.81049147,194.0,193.95,2.68817529]
[1755187508525,37.81049147,194.0,193.95,7.84409466]
[1755187508526,26.0,194.0,193.95,7.84409466]
[1755187508833,12.52049147,193.99,193.88,0.71]
[1755187509007,5.15437348,194.01,193.9,0.61]
[1755187509205,26.0,194.02,193.91,5.15703161]
[1755187509416,26.0,194.02,193.92,11.81049147]
[1755187509417,11.81049147,193.99,193.92,11.81049147]
[1755187509720,26.0,194.07,193.98,11.81049147]
[1755187509925,10.24660715,194.1,193.99,0.61]
[1755187510125,5.15169122,194.12,193.99,0.61]
[1755187510299,40.45,194.13,193.99,0.61]
[1755187510617,11.81049147,194.11,194.0,15.10621557]
[1755187510807,0.71,194.1,194.0,15.10621557]
[1755187511133,0.71,194.1,193.99,1.12549048]
[1755187511134,11.81049147,194.07,193.98,5.15517063]
[1755187511311,40.47,194.07,193.98,5.15517063]
[1755187511487,11.81049147,194.04,193.96,0.61]
[1755187511689,0.71,194.04,193.96,5.15545389]
[1755187512019,0.71,194.04,193.96,16.96594536]
[1755187512318,65.76,194.07,194.02,11.81049147]
[1755187512319,39.98,194.05,194.02,11.81049147]
[1755187512520,11.81049147,194.1,194.02,0.61]
[1755187512722,48.83049147,194.25,194.03,0.61]
[1755187512723,1.38549997,194.14,194.03,0.61]
[1755187512895,0.67549997,194.14,194.04,15.10621557]
[1755187513104,26.0,194.14,194.05,5.153311]
[1755187513296,0.71,194.15,194.1,11.81049147]
[1755187513508,0.71,194.15,194.05,5.153311]
[1755187513509,0.71,194.14,194.08,11.81049147]
[1755187513708,11.81049147,194.09,194.01,0.61]
[1755187513908,11.81049147,194.04,193.98,15.10621557]
[1755187514113,0.71,194.16,194.03,11.81049147]
[1755187514303,0.71,194.16,194.05,15.10621557]
[1755187514517,0.71,194.16,194.06,0.61]
[1755187514995,0.71,194.16,194.13,11.81049147]
[1755187515698,0.71,194.16,194.14,11.81049147]
[1755187515893,0.71,194.16,194.13,11.81049147]
[1755187516140,5.15039329,194.16,194.11,11.81049147]
[1755187516430,45.74213921,194.23,194.07,11.81049147]
[1755187516431,0.71,194.15,194.07,11.81049147]
[1755187516599,11.81049147,194.13,194.07,11.81049147]
[1755187516796,0.71,194.15,194.09,11.81049147]
[1755187517003,0.71,194.15,194.05,0.03]
[1755187517004,0.71,194.15,194.11,11.81049147]
[1755187517309,26.0,194.18,194.12,11.81049147]
[1755187517505,11.81049147,194.17,194.08,20.25850035]
[1755187517710,0.71,194.16,194.08,20.25850035]
[1755187517906,0.71,194.16,194.07,15.10621557]
[1755187518121,0.71,194.16,194.09,11.81049147]
[1755187518423,0.71,194.2,194.14,11.81049147]
[1755187518606,40.58,194.23,194.18,11.81049147]
[1755187518795,11.81049147,194.19,194.08,0.61]
[1755187518998,11.81049147,194.17,194.1,11.81049147]
[1755187519216,11.81049147,194.13,194.05,0.64]
[1755187519420,11.81049147,194.12,194.06,11.81049147]
[1755187519624,11.81049147,194.12,194.05,11.84049147]
[1755187519797,11.81049147,194.11,194.05,11.84049147]
[1755187520008,0.71,194.13,194.05,11.84049147]
[1755187520327,11.81049147,194.11,194.05,0.03]
[1755187520527,11.81049147,194.08,194.05,0.03]
[1755187521235,5.15185968,194.11,194.05,11.84049147]
[1755187521435,2.68411643,194.14,194.08,11.81049147]
[1755187521646,2.68411643,194.14,194.05,0.03]
[1755187521941,11.81049147,194.14,194.08,11.81049147]
[1755187522114,12.52049147,194.14,194.07,11.81049147]
[1755187522430,0.71,194.14,194.08,11.81049147]
[1755187522636,31.15068586,194.15,194.05,0.03]
[1755187522637,0.71,194.17,194.11,11.81049147]
[1755187523009,0.71,194.17,194.12,11.81049147]
[1755187523305,28.68306882,194.18,194.07,11.81049147]
[1755187523306,11.81049147,194.14,194.07,11.81049147]
[1755187523730,0.71,194.13,194.07,11.81049147]
[1755187523942,11.81049147,194.16,194.07,0.61]
[1755187524128,16.96061764,194.17,194.11,11.81049147]
[1755187524309,5.15012617,194.17,194.12,11.81049147]
[1755187524513,12.52049147,194.16,194.1,11.81049147]
[1755187524812,0.71,194.16,194.1,11.81049147]
[1755187525029,0.71,194.16,194.12,11.81049147]
[1755187525231,5.86044506,194.16,194.12,11.81049147]
[1755187525413,5.86044506,194.16,194.11,11.81049147]
[1755187525614,16.96053494,194.18,194.08,5.15251442]
[1755187525827,5.15004347,194.18,194.12,11.81049147]
[1755187526136,5.15004347,194.18,194.07,11.81049147]
[1755187526137,26.0,194.12,194.07,11.81049147]
[1755187526843,0.71,194.12,194.05,0.03]
[1755187527341,5.15171809,194.11,194.06,11.81049147]
[1755187527516,11.81049147,194.09,194.05,0.03]
[1755187527712,0.71,194.08,194.05,0.03]
[1755187528124,11.81049147,194.1,194.05,0.03]
[1755187528434,0.71,194.1,194.05,0.03]
[1755187528738,42.96220956,194.11,194.05,0.03]
[1755187528739,42.96220956,194.11,194.05,11.84049147]
[1755187529035,0.71,194.1,194.05,0.03]
[1755187529242,26.0,194.11,194.05,0.03]
[1755187529441,11.81049147,194.06,194.05,0.03]
[1755187529624,12.52049147,194.06,194.05,0.03]
[1755187530427,26.0,194.06,194.05,0.03]
[1755187530845,38.49049147,194.06,194.05,0.03]
[1755187531037,26.0,194.06,194.05,0.03]
[1755187531238,26.68,194.06,194.05,0.03]
[1755187531447,11.81049147,194.09,194.05,0.03]
[1755187531644,0.68,194.09,194.05,0.03]
[1755187531846,0.68,194.08,194.05,0.03]
[1755187532053,26.0,194.09,194.05,0.03]
[1755187532422,12.49049147,194.11,194.05,11.84049147]
[1755187532639,16.96194417,194.12,194.06,11.81049147]
[1755187532927,0.68,194.11,194.05,0.03]
[1755187533132,12.49049147,194.11,194.05,0.03]
[1755187533330,0.68,194.11,194.05,0.03]
[1755187533535,5.15198351,194.1,194.05,11.84049147]
[1755187533750,0.68,194.09,194.05,0.03]
[1755187533947,11.81049147,194.07,194.05,0.03]
[1755187534255,0.68,194.07,194.05,0.03]
[1755187534424,11.81049147,194.08,194.05,0.03]
[1755187534747,11.81049147,194.06,194.05,0.03]
[1755187534917,11.81049147,194.06,194.05,1e-08]
[1755187534918,14.58841058,194.06,194.05,1e-08]
[1755187535119,14.58841058,194.06,194.03,0.03]
[1755187535120,26.0,194.04,194.03,0.03]
[1755187535350,40.58841058,194.04,194.03,0.03]
[1755187535526,31.83357658,194.04,194.03,0.03]
[1755187535946,43.64406805,194.04,194.03,1e-08]
[1755187536252,43.64406805,194.04,193.87,113.337254]
[1755187536253,26.0,193.99,193.82,3.30058047]
[1755187536454,26.0,193.86,193.82,0.61]
[1755187536633,40.84,193.86,193.79,0.61]
[1755187536837,40.84,193.86,193.69,10.0]
[1755187536838,26.0,193.83,193.8,11.81049147]
[1755187537037,78.65049147,193.86,193.79,11.81049147]
[1755187537352,40.16,193.86,193.71,26.97268558]
[1755187537524,75.24123786,194.04,193.69,2.69142422]
[1755187537525,31.15798152,193.88,193.85,11.81049147]
[1755187537844,31.1297528,193.88,193.83,0.61]
[1755187538046,26.0,193.89,193.84,0.61]
[1755187538240,31.13566648,193.89,193.82,0.61]
[1755187538445,11.81049147,193.83,193.74,11.81049147]
[1755187538666,18.40288156,193.83,193.76,18.40288156]
[1755187538833,18.40288156,193.82,193.76,18.40288156]
[1755187539029,18.40288156,193.82,193.75,19.01288156]
[1755187539345,18.40288156,193.82,193.68,10.0]
[1755187539346,26.0,193.86,193.74,0.61]
[1755187539529,46.0986278,193.85,193.74,0.61]
[1755187539731,5.8386278,193.85,193.74,5.77148018]
[1755187540126,24.24150936,193.85,193.75,15.71621557]
[1755187540337,18.40288156,193.84,193.77,18.40288156]
[1755187540645,18.40288156,193.84,193.75,15.71621557]
[1755187540846,31.13566648,193.89,193.79,15.10621557]
[1755187540847,23.53854804,193.89,193.79,15.10621557]
[1755187541029,23.53854804,193.89,193.8,0.61]
[1755187541236,18.40288156,193.89,193.8,0.61]
[1755187541422,5.11970601,193.89,193.83,18.40288156]
[1755187541625,18.40288156,194.04,193.88,18.40288156]
[1755187541823,18.40288156,193.95,193.88,0.61]
[1755187542045,0.68,193.95,193.87,18.40288156]
[1755187542226,18.40288156,193.91,193.84,18.40288156]
[1755187542434,18.40288156,193.89,193.76,18.0635838]
[1755187542646,0.68,193.88,193.78,18.40288156]
[1755187542844,26.0,193.91,193.79,15.71621557]
[1755187543043,18.40288156,193.88,193.81,18.40288156]
[1755187543265,18.40288156,193.87,193.81,18.40288156]
[1755187543435,18.40288156,193.86,193.8,18.40288156]
[1755187543638,26.0,193.91,193.82,18.40288156]
[1755187544138,18.40288156,193.89,193.81,0.61]
[1755187544339,18.40288156,193.9,193.84,18.40288156]
[1755187544549,5.12123716,193.94,193.87,18.40288156]
[1755187544763,18.40288156,193.93,193.84,20.26489463]
[1755187544965,18.40288156,193.92,193.84,20.26489463]
[1755187545170,18.40288156,193.9,193.83,5.76915583]
[1755187545370,18.40288156,193.91,193.84,18.40288156]
[1755187545538,23.47701018,193.94,193.88,18.40288156]
[1755187545738,18.40288156,193.92,193.86,18.40288156]
[1755187545962,5.12506366,193.96,193.9,18.40288156]
[1755187546137,18.40288156,193.96,193.89,0.61]
[1755187546459,18.40288156,193.99,193.89,0.61]
[1755187546659,23.43967262,193.99,193.93,18.40288156]
[1755187546859,5.03679106,193.99,193.93,18.40288156]
[1755187547043,18.40288156,193.98,193.91,19.01288156]
[1755187547359,5.15487073,194.0,193.88,30.9]
[1755187547360,18.40288156,193.95,193.88,18.40288156]
[1755187547562,4.03062115,193.94,193.85,15.10621557]
[1755187547763,18.40288156,193.88,193.8,0.61]
[1755187547980,4.40193373,193.93,193.68,16.11833202]
[1755187547981,18.40288156,193.85,193.78,18.43288156]
[1755187548140,0.68,193.84,193.78,0.03]
[1755187548344,18.40288156,193.82,193.78,0.03]
[1755187548569,18.40288156,193.83,193.78,0.03]
[1755187548861,18.40288156,193.82,193.78,0.03]
[1755187549055,18.40288156,193.81,193.78,0.03]
[1755187549261,18.40288156,193.79,193.78,0.03]
[1755187549439,19.08288156,193.79,193.78,0.03]
[1755187550466,18.40288156,193.72,193.64,30.9]
[1755187550678,18.40288156,193.65,193.54,0.64]
[1755187550839,18.40288156,193.65,193.54,5.80679113]
[1755187550840,18.40288156,193.63,193.54,5.80679113]
[1755187551040,12.90746535,193.69,193.6,18.40288156]
[1755187551041,0.68,193.69,193.6,18.40288156]
[1755187551279,0.68,193.69,193.62,33.50909713]
[1755187551477,0.68,193.69,193.62,64.40909713]
[1755187551654,0.68,193.69,193.62,46.00621557]
[1755187551854,18.40288156,193.67,193.62,46.00621557]
[1755187552172,0.68,193.66,193.56,0.64]
[1755187552475,18.40288156,193.65,193.59,30.9]
[1755187552656,18.40288156,193.65,193.58,18.50288156]
[1755187552977,18.40288156,193.71,193.63,18.40288156]
[1755187553187,18.40288156,193.71,193.59,1.1565556]
[1755187553188,0.68,193.7,193.59,0.64]
[1755187553340,18.40288156,193.67,193.6,18.40288156]
[1755187553543,46.38155672,193.74,193.6,18.40288156]
[1755187553544,5.16155672,193.74,193.64,18.40288156]
[1755187553865,18.40288156,193.65,193.58,0.1]
[1755187554070,26.0,193.67,193.58,0.1]
[1755187554071,18.40288156,193.61,193.58,0.1]
[1755187554255,18.40288156,193.59,193.58,0.1]
[1755187554447,18.40288156,193.61,193.58,0.1]
[1755187554642,0.68,193.61,193.58,0.1]
[1755187555055,18.40288156,193.59,193.58,0.1]
[1755187555259,5.1647557,193.62,193.58,0.1]
[1755187555461,19.08288156,193.59,193.58,0.1]
[1755187556565,0.68,193.59,193.58,0.1]
[1755187556772,19.08288156,193.59,193.58,0.1]
[1755187556954,18.40288156,193.59,193.58,0.1]
[1755187557286,26.0,193.64,193.58,0.1]
[1755187557482,41.52,193.63,193.58,0.1]
[1755187557791,0.68,193.67,193.58,0.1]
[1755187558082,41.52,193.66,193.58,0.1]
[1755187558390,0.68,193.67,193.58,0.1]
[1755187558558,41.82,193.66,193.58,0.1]
[1755187558875,18.40288156,193.61,193.58,0.1]
[1755187559078,5.16422226,193.64,193.58,0.1]
[1755187559263,18.40288156,193.63,193.58,0.1]
[1755187559468,18.40288156,193.62,193.58,0.1]
[1755187559869,0.68,193.63,193.58,0.1]
[1755187560075,18.40288156,193.62,193.58,0.1]
[1755187560278,42.5,193.66,193.58,0.1]
[1755187560473,10.0,193.77,193.58,0.1]
[1755187560474,0.66,193.7,193.62,18.40288156]
[1755187560783,18.40288156,193.66,193.62,212.8]
[1755187561081,26.66,193.7,193.6,18.40288156]
[1755187561402,18.40288156,193.67,193.6,212.8]
[1755187561568,5.16208961,193.72,193.61,0.64]
[1755187561758,18.40288156,193.72,193.66,18.40288156]
[1755187561958,0.66,193.73,193.62,15.10621557]
[1755187561959,0.66,193.73,193.62,0.64]
[1755187562402,5.19421753,193.78,193.62,26.64]
[1755187562560,19.06288156,193.76,193.63,15.74621557]
[1755187562755,19.06288156,193.76,193.67,18.40288156]
[1755187562756,0.66,193.76,193.67,18.40288156]
[1755187562981,18.40288156,193.7,193.64,0.64]
[1755187563183,0.66,193.73,193.61,15.74621557]
[1755187563483,73.11657759,193.78,193.61,15.74621557]
[1755187563484,18.40288156,193.74,193.67,18.40288156]
[1755187563708,18.40288156,193.68,193.6,0.64]
[1755187563859,0.66,193.68,193.57,5.16596348]
[1755187564059,0.66,193.68,193.56,0.64]
[1755187564060,18.40288156,193.64,193.58,18.50288156]
[1755187564259,41.9,193.67,193.58,0.1]
[1755187564460,18.40288156,193.63,193.58,0.1]
[1755187564688,0.66,193.68,193.59,19.04288156]
[1755187564861,18.40288156,193.65,193.59,19.04288156]
[1755187565070,23.56697297,193.65,193.62,0.03]
[1755187565273,18.40288156,193.63,193.62,0.03]
[1755187565569,19.06288156,193.63,193.62,0.03]
[1755187565890,18.40288156,193.64,193.62,0.03]
[1755187566091,18.40288156,193.63,193.62,0.03]
[1755187566271,19.06288156,193.63,193.62,0.03]
[1755187566475,19.06288156,193.63,193.6,0.03]
[1755187566675,18.40288156,193.61,193.6,0.03]
[1755187566886,24.22790402,193.61,193.48,0.67]
[1755187567092,18.40288156,193.53,193.46,18.40288156]
[1755187567271,42.52,193.55,193.43,5.16982887]
[1755187567470,18.40288156,193.53,193.43,5.16982887]
[1755187567695,18.40288156,193.52,193.46,18.40288156]
[1755187567903,41.86,193.56,193.51,18.40288156]
[1755187568107,41.84,193.57,193.51,18.40288156]
[1755187568306,41.84,193.57,193.47,0.67]
[1755187568307,47.74288156,193.57,193.47,0.67]
[1755187568476,18.40288156,193.59,193.53,18.40288156]
[1755187568802,18.40288156,193.65,193.58,18.40288156]
[1755187569095,18.40288156,193.65,193.58,23.56863253]
[1755187569298,18.40288156,193.64,193.56,5.83609603]
[1755187569486,5.8234312,193.67,193.56,5.83627791]
[1755187569685,18.40288156,193.63,193.56,0.67]
[1755187569888,18.40288156,193.62,193.56,19.07288156]
[1755187570195,47.6034312,193.67,193.51,0.67]
[1755187570196,18.40288156,193.58,193.51,0.67]
[1755187570386,0.66,193.61,193.51,19.07288156]
[1755187570387,18.40288156,193.57,193.51,19.07288156]
[1755187570569,41.78,193.6,193.51,0.67]
[1755187570773,18.40288156,193.56,193.48,0.67]
[1755187570970,18.40288156,193.54,193.47,15.10621557]
[1755187571174,18.40288156,193.54,193.44,0.67]
[1755187571175,18.40288156,193.52,193.44,0.67]
[1755187571376,0.66,193.52,193.41,5.17036347]
[1755187571689,67.78,193.6,193.41,5.17036347]
[1755187571690,5.16646954,193.56,193.49,18.40288156]
[1755187571878,18.40288156,193.58,193.52,18.40288156]
[1755187572071,41.8,193.59,193.48,0.67]
[1755187572272,5.82530859,193.6,193.49,15.10621557]
[1755187572469,18.40288156,193.57,193.49,15.10621557]
[1755187572695,5.82530859,193.6,193.53,18.40288156]
[1755187572696,0.66,193.6,193.53,18.40288156]
[1755187572897,5.16715754,193.53,193.46,0.67]
[1755187573082,0.66,193.54,193.45,23.57214644]
[1755187573395,19.06288156,193.54,193.47,18.40288156]
[1755187573592,5.16662361,193.55,193.46,18.40288156]
[1755187574099,18.40288156,193.54,193.45,26.7]
[1755187574299,0.66,193.53,193.45,0.03]
[1755187574799,18.40288156,193.48,193.45,0.03]
[1755187575292,18.40288156,193.46,193.45,0.03]
[1755187575497,19.06288156,193.46,193.45,0.03]
[1755187575672,0.66,193.46,193.45,0.03]
[1755187575999,0.66,193.46,193.33,3.30030912]
[1755187576000,19.06288156,193.46,193.35,18.40288156]
[1755187576239,0.66,193.45,193.33,3.30030912]
[1755187576500,42.32,193.44,193.37,18.40288156]
[1755187576677,5.83647417,193.48,193.37,0.7]
[1755187576871,42.32,193.5,193.33,20.73397211]
[1755187576872,5.16902718,193.46,193.35,5.17196793]
[1755187577182,18.40288156,193.46,193.36,0.7]
[1755187577396,5.08102439,193.48,193.4,18.40288156]
[1755187577596,5.08102439,193.48,193.38,0.7]
[1755187577597,18.40288156,193.48,193.38,0.7]
[1755187577901,18.40288156,193.47,193.38,0.7]
[1755187578106,0.66,193.46,193.37,18.40288156]
[1755187578401,15.509887,193.5,193.36,0.7]
[1755187578599,18.40288156,193.47,193.37,15.10621557]
[1755187578775,18.40288156,193.47,193.36,15.80621557]
[1755187578975,18.40288156,193.47,193.36,0.7]
[1755187579176,0.66,193.49,193.42,18.40288156]
[1755187579177,19.06288156,193.49,193.42,18.40288156]
[1755187579381,42.38,193.52,193.44,18.40288156]
[1755187579590,47.16,193.64,193.39,15.10621557]
[1755187579591,16.16668,193.54,193.47,18.40288156]
[1755187579801,15.50668,193.54,193.41,26.0]
[1755187580006,18.40288156,193.52,193.45,18.40288156]
[1755187580211,18.40288156,193.53,193.47,18.40288156]
[1755187580517,18.40288156,193.56,193.49,18.40288156]
[1755187580816,18.40288156,193.5,193.42,0.7]
[1755187581017,0.66,193.52,193.43,5.16982887]
[1755187581197,18.40288156,193.49,193.43,23.57271043]
[1755187581401,5.16608978,193.57,193.45,18.40288156]
[1755187581716,42.4,193.58,193.48,18.40288156]
[1755187581895,18.40288156,193.57,193.51,18.40288156]
[1755187582095,18.40288156,193.53,193.46,0.7]
[1755187582296,0.66,193.56,193.5,18.40288156]
[1755187582490,18.40288156,193.6,193.5,0.7]
[1755187582693,0.66,193.61,193.5,0.7]
[1755187582914,18.40288156,193.61,193.5,0.7]
[1755187583103,18.40288156,193.61,193.55,18.40288156]
[1755187583503,18.40288156,193.59,193.51,5.16769159]
[1755187583691,0.66,193.59,193.51,18.40288156]
[1755187583888,19.06288156,193.59,193.53,18.40288156]
[1755187584092,25.95075446,193.63,193.5,0.7]
[1755187584093,18.40288156,193.62,193.5,0.7]
[1755187584397,18.40288156,193.65,193.52,41.10621557]
[1755187584601,18.40288156,193.64,193.58,18.40288156]
[1755187584916,18.40288156,193.65,193.58,18.40288156]
[1755187585219,18.40288156,193.64,193.58,18.40288156]
[1755187585598,18.40288156,193.65,193.55,5.16641158]
[1755187585910,18.40288156,193.65,193.58,18.40288156]
[1755187586122,48.28379175,193.66,193.58,18.40288156]
[1755187586123,18.40288156,193.64,193.58,18.40288156]
[1755187586421,43.12,193.66,193.59,18.40288156]
[1755187586592,43.12,193.66,193.55,5.16641158]
[1755187586593,60.86288156,193.66,193.56,0.7]
[1755187586798,18.40288156,193.64,193.57,18.40288156]
[1755187587003,43.12,193.66,193.57,5.16608978]
[1755187587199,61.52288156,193.66,193.57,5.16608978]
[1755187587601,61.52288156,193.66,193.6,18.40288156]
[1755187587815,66.68669137,193.66,193.57,5.16608978]
[1755187588010,15.494667,193.72,193.57,5.16608978]
[1755187588011,18.40288156,193.68,193.62,18.40288156]
[1755187588323,18.40288156,193.68,193.58,0.7]
[1755187588517,18.40288156,193.68,193.62,18.40288156]
[1755187588817,0.66,193.69,193.62,18.40288156]
[1755187589118,18.40288156,193.68,193.62,18.40288156]
[1755187589315,5.82311245,193.69,193.62,18.40288156]
[1755187589525,18.40288156,193.68,193.59,5.16531389]
[1755187589723,18.40288156,193.68,193.62,18.40288156]
[1755187589901,24.22599401,193.69,193.63,18.40288156]
[1755187590103,0.66,193.69,193.65,18.40288156]
[1755187590999,0.06,193.7,193.63,0.69]
[1755187591234,0.06,193.7,193.69,18.40288156]
[1755187591419,0.06,193.7,193.68,18.40288156]
[1755187591809,0.06,193.7,193.64,5.16422226]
[1755187591810,0.06,193.7,193.69,18.40288156]
[1755187591998,0.06,193.7,193.69,19.09288156]
[1755187592436,0.06,193.7,193.69,34.19909713]
[1755187592925,0.06,193.7,193.69,65.09909713]
[1755187593105,0.06,193.7,193.69,70.77827519]
[1755187593423,0.06,193.78,193.7,15.10621557]
[1755187593624,0.06,193.78,193.77,18.40288156]
[1755187593822,0.75,193.78,193.71,30.9]
[1755187594124,0.75,193.78,193.75,18.40288156]
[1755187594312,0.75,193.78,193.76,18.40288156]
[1755187594515,0.75,193.78,193.77,18.40288156]
[1755187594516,0.06,193.78,193.77,18.40288156]
[1755187594722,0.06,193.78,193.71,46.00621557]
[1755187594914,0.06,193.76,193.75,18.40288156]
[1755187595109,0.06,193.76,193.71,30.9]
[1755187595319,0.06,193.76,193.75,18.40288156]
[1755187596011,0.06,193.76,193.75,19.09288156]
[1755187596524,0.06,193.78,193.75,65.09909713]
[1755187596722,0.06,193.78,193.77,18.40288156]
[1755187596928,0.06,193.78,193.75,30.9]
[1755187597228,0.06,193.78,193.77,18.40288156]
[1755187597703,0.06,193.78,193.77,23.56363915]
[1755187597899,0.06,193.78,193.77,24.20363915]
[1755187598229,0.06,193.78,193.74,110.8]
[1755187598427,0.75,193.78,193.74,79.9]
[1755187598629,0.69,193.77,193.72,18.40288156]
[1755187598805,0.69,193.76,193.72,18.40288156]
[1755187599413,0.06,193.78,193.74,18.40288156]
[1755187599612,0.06,193.78,193.75,18.40288156]
[1755187600132,0.06,193.78,193.74,18.40288156]
[1755187600437,0.69,193.77,193.67,106.54]
[1755187600638,18.40288156,193.75,193.69,18.40288156]
[1755187600841,0.69,193.74,193.67,44.40288156]
[1755187601043,18.40288156,193.72,193.64,0.67]
[1755187601214,0.69,193.74,193.68,18.40288156]
[1755187601407,0.69,193.74,193.65,15.10621557]
[1755187601606,0.69,193.74,193.68,18.40288156]
[1755187601902,19.09288156,193.75,193.66,5.80365465]
[1755187602136,18.40288156,193.74,193.66,5.80365465]
[1755187602434,18.40288156,193.74,193.65,95.00621557]
[1755187602435,0.69,193.75,193.67,18.40288156]
[1755187602738,0.69,193.75,193.69,18.40288156]
[1755187602936,19.09288156,193.75,193.69,18.40288156]
[1755187603232,19.09288156,193.75,193.68,49.30288156]
[1755187603531,61.13288156,193.78,193.72,18.40288156]
[1755187603738,19.15288156,193.78,193.72,18.40288156]
[1755187604041,19.15288156,193.78,193.7,30.9]
[1755187604042,0.06,193.78,193.7,30.9]
[1755187604227,0.06,193.78,193.74,18.40288156]
[1755187605331,0.06,193.77,193.75,18.40288156]
[1755187605904,0.06,193.77,193.73,30.9]
[1755187606309,0.06,193.77,193.74,18.40288156]
[1755187606528,0.06,193.77,193.75,18.40288156]
[1755187607105,0.06,193.77,193.72,30.9]
[1755187607309,0.06,193.77,193.69,0.51628891]
[1755187607310,0.69,193.76,193.69,30.9]
[1755187607509,18.40288156,193.75,193.69,18.40288156]
[1755187607728,19.09288156,193.76,193.7,18.40288156]
[1755187607927,0.69,193.76,193.7,18.40288156]
[1755187608123,0.06,193.77,193.73,18.40288156]
[1755187608308,0.06,193.77,193.74,18.40288156]
[1755187608519,0.06,193.77,193.73,18.40288156]
[1755187609127,0.06,193.77,193.72,18.40288156]
[1755187609327,0.06,193.77,193.73,5.16182315]
[1755187609531,0.06,193.77,193.74,19.04288156]
[1755187609826,0.06,193.77,193.73,5.16182315]
[1755187610132,0.06,193.77,193.71,0.64]
[1755187610133,0.06,193.77,193.72,18.40288156]
[1755187610326,0.06,193.77,193.68,0.51631557]
[1755187610327,19.09288156,193.76,193.68,30.9]
[1755187610531,19.09288156,193.76,193.68,110.8]
[1755187610729,0.69,193.76,193.7,18.40288156]
[1755187610936,19.09288156,193.76,193.7,18.40288156]
[1755187611117,18.40288156,193.73,193.64,121.91]
[1755187611320,18.40288156,193.74,193.68,18.40288156]
[1755187611515,0.06,193.77,193.7,18.40288156]
[1755187611713,0.06,193.77,193.72,18.40288156]
[1755187612126,0.06,193.77,193.74,18.40288156]
[1755187612322,0.06,193.77,193.75,18.40288156]
[1755187612927,0.06,193.77,193.76,19.04288156]
[1755187613115,0.06,193.77,193.76,0.64]
[1755187613314,0.06,193.77,193.76,119.21012107]
[1755187613731,0.06,193.77,193.76,39.31012107]
[1755187614249,0.06,193.77,193.76,39.82622346]
[1755187614452,0.06,193.77,193.76,21.4233419]
[1755187614752,0.06,193.77,193.74,26.0]
[1755187614916,0.06,193.77,193.71,5.67837983]
[1755187615124,0.06,193.77,193.74,18.40288156]
[1755187615321,0.06,193.77,193.76,38.67012107]
[1755187615631,0.06,193.78,193.77,15.10621557]
[1755187615837,0.06,193.8,193.77,34.54517288]
[1755187616024,0.06,193.8,193.79,18.40288156]
[1755187616224,0.06,193.8,193.79,18.91890405]
[1755187616424,0.06,193.8,193.79,1.03602249]
[1755187616625,0.06,193.8,193.79,19.43890405]
[1755187616826,0.06,193.8,193.79,76.68511962]
[1755187617318,0.06,193.8,193.78,18.40288156]
[1755187617725,0.06,193.8,193.77,60.50288156]
[1755187618033,0.75,193.8,193.76,18.40288156]
[1755187618561,0.06,193.8,193.78,18.40288156]
[1755187619245,0.06,193.8,193.79,18.40288156]
[1755187619425,0.06,193.8,193.79,18.92288156]
[1755187619627,0.06,193.8,193.76,15.10621557]
[1755187619845,18.40288156,193.78,193.72,0.03]
[1755187620028,0.69,193.77,193.72,0.03]
[1755187620232,0.69,193.76,193.75,18.40288156]
[1755187620535,0.06,193.8,193.75,18.40288156]
[1755187620536,0.06,193.8,193.77,79.9]